Workbook

Sheet Mittelhilfstabelle
A2: Stunde | B2: Wind | C2: Luftfeuchtigkeit | D2: Luftdruck | E2: Taupunkttemperatur | F2: Bewölkung | H2: Stunde | I2: Wind | J2: Luftfeuchtigkeit | K2: Luftdruck | L2: Taupunkttemperatur | M2: Bewölkung
A3: 00 | B3: 0 | C3: 88 | D3: 1029.4 | E3: -1.4 | F3: 7 | H3: 00 | I3: 1 | J3: 84 | K3: 1017.2 | L3: -1.5 | M3: 7
A4: 01 | B4: 1 | C4: 89 | D4: 1028.2 | E4: -1 | F4: 7 | H4: 01 | I4: 0 | J4: 82 | K4: 1016.8 | L4: -1.7 | M4: 7
A5: 02 | B5: 1 | C5: 88 | D5: 1027.6 | E5: -0.8 | F5: 7 | H5: 02 | I5: 1 | J5: 82 | K5: 1016.7 | L5: -1.3 | M5: 7
A6: 03 | B6: 1 | C6: 88 | D6: 1027.3 | E6: 0 | F6: 7 | H6: 03 | I6: 1 | J6: 81 | K6: 1016.5 | L6: -1.2 | M6: 7
A7: 04 | B7: 1 | C7: 89 | D7: 1026.5 | E7: 0.2 | F7: 7 | H7: 04 | I7: 1 | J7: 80 | K7: 1016.8 | L7: -1.5 | M7: 7
A8: 05 | B8: 1 | C8: 87 | D8: 1025.4 | E8: 0.9 | F8: 7 | H8: 05 | I8: 1 | J8: 81 | K8: 1016.6 | L8: -1.1 | M8: 7
A9: 06 | B9: 1 | C9: 85 | D9: 1024.9 | E9: 1.2 | F9: 7 | H9: 06 | I9: 1 | J9: 82 | K9: 1016.3 | L9: -0.8 | M9: 7
A10: 07 | B10: 1 | C10: 84 | D10: 1025.2 | E10: 1.2 | F10: 7 | H10: 07 | I10: 1 | J10: 80 | K10: 1016.8 | L10: -0.7 | M10: 7
A11: 08 | B11: 0 | C11: 85 | D11: 1024.7 | E11: 1.3 | F11: 7 | H11: 08 | I11: 1 | J11: 81 | K11: 1017.2 | L11: -1.4 | M11: 7
A12: 09 | B12: 0 | C12: 86 | D12: 1024.8 | E12: 1.7 | F12: 7 | H12: 09 | I12: 1 | J12: 87 | K12: 1017.3 | L12: -0.8 | M12: 7
A13: 10 | B13: 0 | C13: 87 | D13: 1024.8 | E13: 1.9 | F13: 7 | H13: 10 | I13: 1 | J13: 86 | K13: 1018 | L13: -0.2 | M13: 7
A14: 11 | B14: 1 | C14: 82 | D14: 1024.3 | E14: 2.8 | F14: 7 | H14: 11 | I14: 1 | J14: 86 | K14: 1018 | L14: 0.2 | M14: 7
A15: 12 | B15: 1 | C15: 83 | D15: 1023.4 | E15: 3.2 | F15: 7 | H15: 12 | I15: 1 | J15: 76 | K15: 1017.5 | L15: 1.7 | M15: 6
A16: 13 | B16: 1 | C16: 78 | D16: 1022.9 | E16: 2.7 | F16: 6 | H16: 13 | I16: 1 | J16: 78 | K16: 1016.9 | L16: 2.2 | M16: 6
A17: 14 | B17: 1 | C17: 77 | D17: 1022.1 | E17: 2.1 | F17: 6 | H17: 14 | I17: 1 | J17: 63 | K17: 1016.5 | L17: 2.3 | M17: 5
A18: 15 | B18: 1 | C18: 80 | D18: 1021.2 | E18: 1.5 | F18: 7 | H18: 15 | I18: 1 | J18: 70 | K18: 1017.1 | L18: 2.5 | M18: 6
A19: 16 | B19: 1 | C19: 85 | D19: 1020.7 | E19: 0.7 | F19: 7 | H19: 16 | I19: 1 | J19: 72 | K19: 1017.4 | L19: 2.3 | M19: 6
A20: 17 | B20: 0 | C20: 87 | D20: 1019.6 | E20: 0.1 | F20: 7 | H20: 17 | I20: 1 | J20: 73 | K20: 1018.4 | L20: 1.7 | M20: 6
A21: 18 | B21: 1 | C21: 84 | D21: 1019 | E21: 0.6 | F21: 7 | H21: 18 | I21: 1 | J21: 72 | K21: 1018.9 | L21: 1.1 | M21: 6
A22: 19 | B22: 0 | C22: 86 | D22: 1018.6 | E22: 0 | F22: 7 | H22: 19 | I22: 1 | J22: 73 | K22: 1018.9 | L22: 1.4 | M22: 6
A23: 20 | B23: 0 | C23: 84 | D23: 1018 | E23: 0 | F23: 7 | H23: 20 | I23: 2 | J23: 72 | K23: 1019.5 | L23: 1.4 | M23: 6
A24: 21 | B24: 1 | C24: 83 | D24: 1017.5 | E24: -0.1 | F24: 7 | H24: 21 | I24: 1 | J24: 73 | K24: 1019.8 | L24: 1.3 | M24: 6
A25: 22 | B25: 0 | C25: 84 | D25: 1017.3 | E25: -0.9 | F25: 7 | H25: 22 | I25: 1 | J25: 71 | K25: 1019.8 | L25: 1.1 | M25: 6
A26: 23 | B26: 1 | C26: 84 | D26: 1017.6 | E26: -1.1 | F26: 7 | H26: 23 | I26: 2 | J26: 72 | K26: 1019.6 | L26: 1.5 | M26: 6
A27: Mittel | B27: =ROUND(AVERAGE(B3:B26),1) -> 0.7 | C27: =ROUND(AVERAGE(C3:C26),1) -> 84.7 | D27: =ROUND(AVERAGE(D3:D26),1) -> 1023 | E27: =AVERAGE(E3:E26) -> 0.7 | F27: =ROUND(AVERAGE(F3:F26),1) -> 6.9 | H27: Mittel | I27: =ROUND(AVERAGE(I3:I26),1) -> 1 | J27: =ROUND(AVERAGE(J3:J26),1) -> 77.4 | K27: =ROUND(AVERAGE(K3:K26),1) -> 1017.7 | L27: =AVERAGE(L3:L26) -> 0.3541666667 | M27: =ROUND(AVERAGE(M3:M26),1) -> 6.5
E29: 2012-12-29 | L29: 2012-12-30
A32: Stunde | B32: Wind | C32: Luftfeuchtigkeit | D32: Luftdruck | E32: Taupunkttemperatur | F32: Bewölkung | H32: Stunde | I32: Wind | J32: Luftfeuchtigkeit | K32: Luftdruck | L32: Taupunkttemperatur | M32: Bewölkung
A33: 00 | B33: 1 | C33: 71 | D33: 1019.7 | E33: 1.4 | F33: 6 | H33: 00 | I33: 0 | J33: 91 | K33: 1008.7 | L33: 4.1 | M33: 8
A34: 01 | B34: 1 | C34: 72 | D34: 1019.8 | E34: 1.7 | F34: 6 | H34: 01 | I34: 0 | J34: 93 | K34: 1009.9 | L34: 4.2 | M34: 8
A35: 02 | B35: 1 | C35: 72 | D35: 1019.9 | E35: 1.7 | F35: 6 | H35: 02 | I35: 1 | J35: 95 | K35: 1011.8 | L35: 4.3 | M35: 8
A36: 03 | B36: 2 | C36: 73 | D36: 1019.9 | E36: 2.1 | F36: 6 | H36: 03 | I36: 1 | J36: 94 | K36: 1013.6 | L36: 3.9 | M36: 8
A37: 04 | B37: 1 | C37: 74 | D37: 1019.8 | E37: 2.1 | F37: 6 | H37: 04 | I37: 1 | J37: 94 | K37: 1015.6 | L37: 3.3 | M37: 8
A38: 05 | B38: 2 | C38: 73 | D38: 1019.9 | E38: 2.4 | F38: 6 | H38: 05 | I38: 2 | J38: 95 | K38: 1017.4 | L38: 2.9 | M38: 8
A39: 06 | B39: 1 | C39: 73 | D39: 1019.8 | E39: 2.4 | F39: 6 | H39: 06 | I39: 2 | J39: 93 | K39: 1019.5 | L39: 1 | M39: 8
A40: 07 | B40: 1 | C40: 72 | D40: 1019.5 | E40: 2 | F40: 6 | H40: 07 | I40: 1 | J40: 91 | K40: 1022 | L40: -0.4 | M40: 8
A41: 08 | B41: 1 | C41: 71 | D41: 1019.6 | E41: 2.2 | F41: 6 | H41: 08 | I41: 1 | J41: 89 | K41: 1024.2 | L41: -1.2 | M41: 8
A42: 09 | B42: 1 | C42: 71 | D42: 1019.4 | E42: 2.4 | F42: 6 | H42: 09 | I42: 1 | J42: 85 | K42: 1026.1 | L42: -2.1 | M42: 7
A43: 10 | B43: 1 | C43: 68 | D43: 1019.1 | E43: 2.5 | F43: 5 | H43: 10 | I43: 1 | J43: 83 | K43: 1027.4 | L43: -2.5 | M43: 7
A44: 11 | B44: 1 | C44: 65 | D44: 1019 | E44: 2.6 | F44: 5 | H44: 11 | I44: 1 | J44: 78 | K44: 1028.7 | L44: -3.6 | M44: 6
A45: 12 | B45: 1 | C45: 75 | D45: 1018.1 | E45: 3.1 | F45: 6 | H45: 12 | I45: 1 | J45: 74 | K45: 1029 | L45: -3.7 | M45: 6
A46: 13 | B46: 1 | C46: 76 | D46: 1017.5 | E46: 3.1 | F46: 6 | H46: 13 | I46: 1 | J46: 71 | K46: 1029.1 | L46: -4.2 | M46: 6
A47: 14 | B47: 0 | C47: 76 | D47: 1016.9 | E47: 3.2 | F47: 6 | H47: 14 | I47: 1 | J47: 72 | K47: 1029.5 | L47: -3.6 | M47: 6
A48: 15 | B48: 0 | C48: 78 | D48: 1016.3 | E48: 3 | F48: 6 | H48: 15 | I48: 0 | J48: 74 | K48: 1029.7 | L48: -4 | M48: 6
A49: 16 | B49: 0 | C49: 79 | D49: 1016.3 | E49: 2.6 | F49: 6 | H49: 16 | I49: 0 | J49: 79 | K49: 1030.1 | L49: -4 | M49: 6
A50: 17 | B50: 0 | C50: 80 | D50: 1015.2 | E50: 2.5 | F50: 7 | H50: 17 | I50: 1 | J50: 82 | K50: 1030.8 | L50: -4 | M50: 6
A51: 18 | B51: 0 | C51: 75 | D51: 1014.9 | E51: 2.4 | F51: 6 | H51: 18 | I51: 1 | J51: 87 | K51: 1030.7 | L51: -3.9 | M51: 7
A52: 19 | B52: 1 | C52: 75 | D52: 1014.2 | E52: 2.2 | F52: 6 | H52: 19 | I52: 0 | J52: 92 | K52: 1030 | L52: -4.1 | M52: 8
A53: 20 | B53: 1 | C53: 79 | D53: 1014.1 | E53: 1.9 | F53: 6 | H53: 20 | I53: 0 | J53: 90 | K53: 1030.1 | L53: -4.2 | M53: 8
A54: 21 | B54: 1 | C54: 80 | D54: 1013.9 | E54: 1.8 | F54: 7 | H54: 21 | I54: 0 | J54: 90 | K54: 1029.9 | L54: -3.9 | M54: 8
A55: 22 | B55: 0 | C55: 83 | D55: 1013.2 | E55: 1.4 | F55: 7 | H55: 22 | I55: 0 | J55: 92 | K55: 1029.9 | L55: -3.7 | M55: 8
A56: 23 | B56: 0 | C56: 86 | D56: 1012.7 | E56: 0.9 | F56: 7 | H56: 23 | I56: 1 | J56: 91 | K56: 1029.7 | L56: -2 | M56: 8
A57: Mittel | B57: =ROUND(AVERAGE(B33:B56),1) -> 0.8 | C57: =ROUND(AVERAGE(C33:C56),1) -> 74.9 | D57: =ROUND(AVERAGE(D33:D56),1) -> 1017.4 | E57: =AVERAGE(E33:E56) -> 2.233333333 | F57: =ROUND(AVERAGE(F33:F56),1) -> 6.1 | H57: Mittel | I57: =ROUND(AVERAGE(I33:I56),1) -> 0.8 | J57: =ROUND(AVERAGE(J33:J56),1) -> 86.5 | K57: =ROUND(AVERAGE(K33:K56),1) -> 1024.3 | L57: =AVERAGE(L33:L56) -> -1.308333333 | M57: =ROUND(AVERAGE(M33:M56),1) -> 7.3
E59: 2012-12-31 | L59: 2012-12-28

Sheet Kurztab.
A2: Wetterwarte: Köttewitz | L2: Monat: | M2: Dezember | Y2: Jahr: | Z2: 2012
A4: Dat. | B4: TTT | C4: TxTx | D4: TnTn | E4: Tg | F4: Umin. | G4: UU | H4: NN | I4: RRRR | J4: Art | L4: sss | M4: PPPP | N4: eee | O4: fff | R4: Tage mit | V4: fk
J5: * | O5: Bft | P5: SS | Q5: Art ( D ) | R5: NE | S5: Ge | T5: Bf6 | U5: Bf8 | V5: Bft
A6: 01. | B6: -2.4 | C6: 0.8 | D6: -5.2 | E6: -6.1 | F6: 81 | G6: 91 | H6: 1.7 | I6: 0 | L6: 6 | M6: 1014.5 | N6: -3.7 | O6: 0 | P6: 8 | Q6: * | V6: 2 | AA6: max >=30,0°C | AB6: max >=25,0°C | AC6: max <0,0°C | AE6: RR >=0,1 mm | AF6: RR >=1,0 mm | AG6: RR >=3,0 mm | AH6: RR >=10,0 mm
A7: 02. | B7: -2.6 | C7: -0.3 | D7: -5.4 | E7: -6.7 | F7: 79 | G7: 89 | H7: 5.7 | I7: 0 | L7: 4 | M7: 1011.7 | N7: -4.1 | O7: 0 | P7: 7 | Q7: * | V7: 2 | AA7: =COUNTIF(C6:C15,">=30") -> 0 | AB7: =COUNTIF(C6:C15,">=25") -> 0 | AC7: =COUNTIF(C6:C15,"<0") -> 5 | AE7: =COUNTIF(I6:I15,">=0,1") -> 5 | AF7: =COUNTIF(I6:I15,">=1") -> 4 | AG7: =COUNTIF(I6:I15,">=3") -> 3 | AH7: =COUNTIF(I6:I15,">=10") -> 0
A8: 03. | B8: -0.7 | C8: 0.9 | D8: -3.3 | E8: -5.6 | F8: 82 | G8: 91 | H8: 6.8 | I8: 2.9 | J8: S | L8: 2 | M8: 1012.9 | N8: -2 | O8: 0 | P8: 9 | Q8: * | R8: 1 | V8: 3 | AA8: =COUNTIF(C18:C27,">=30") -> 0 | AB8: =COUNTIF(C18:C27,">=25") -> 0 | AC8: =COUNTIF(C18:C27,"<0") -> 4 | AE8: =COUNTIF(I18:I27,">=0,1") -> 7 | AF8: =COUNTIF(I18:I27,">=1") -> 5 | AG8: =COUNTIF(I18:I27,">=3") -> 2 | AH8: =COUNTIF(I18:I27,">=10") -> 0
A9: 04. | B9: 2 | C9: 3.5 | D9: 0 | E9: -1.7 | F9: 79 | G9: 86 | H9: 6.9 | I9: 0.8 | J9: S | L9: 1 | M9: 999.4 | N9: -0.2 | O9: 1 | P9: 8 | Q9: * | R9: 1 | V9: 4 | AA9: =COUNTIF(C30:C40,">=30") -> 0 | AB9: =COUNTIF(C30:C40,">=25") -> 0 | AC9: =COUNTIF(C30:C40,"<0") -> 0 | AE9: =COUNTIF(I30:I40,">=0,1") -> 7 | AF9: =COUNTIF(I30:I40,">=1") -> 3 | AG9: =COUNTIF(I30:I40,">=3") -> 2 | AH9: =COUNTIF(I30:I40,">=10") -> 1
A10: 05. | B10: -0.7 | C10: 3.3 | D10: -6 | E10: -7.2 | F10: 69 | G10: 83 | H10: 4.5 | I10: 0 | L10: 2 | M10: 1001.4 | N10: -3.1 | O10: 0 | P10: 7 | Q10: * | V10: 4
A11: 06. | B11: -3.2 | C11: -0.6 | D11: -6.2 | E11: -7.2 | F11: 79 | G11: 90 | H11: 5.5 | I11: 3.3 | J11: S | L11: 0 | M11: 1009.3 | N11: -4.6 | O11: 1 | P11: 11 | Q11: * | R11: 1 | V11: 4 | AA11: min <0,0°C | AB11: min <0-10,0°C | AE11: rel.Lf. 14h >=70% | AG11: rel.Lf. 14h <=40%
A12: 07. | B12: -6.1 | C12: -2.1 | D12: -8.8 | E12: -11.7 | F12: 74 | G12: 87 | H12: 2 | I12: 0 | L12: 7 | M12: 1013 | N12: -7.8 | O12: 1 | P12: 12 | Q12: * | V12: 3 | AA12: =COUNTIF(D6:D15,"<0") -> 9 | AB12: =COUNTIF(D6:D15,"<=-10") -> 1 | AE12: =COUNTIF(F6:F15,">=70") -> 8 | AG12: =COUNTIF(F6:F15,"<=40") -> 0
A13: 08. | B13: -8.8 | C13: -4.7 | D13: -13 | E13: -13.3 | F13: 77 | G13: 87 | H13: 2.2 | I13: 0 | L13: 7 | M13: 1020.8 | N13: -10.7 | O13: 0 | P13: 10 | Q13: * | V13: 2 | AA13: =COUNTIF(D18:D27,"<0") -> 6 | AB13: =COUNTIF(D18:D27,"<=-10") -> 0 | AE13: =COUNTIF(F18:F27,">=70") -> 10 | AG13: =COUNTIF(F18:F27,"<=40") -> 0
A14: 09. | B14: -4.5 | C14: -1.2 | D14: -9.3 | E14: -10.6 | F14: 67 | G14: 85 | H14: 5.7 | I14: 5.6 | J14: S | L14: 3 | M14: 1016.5 | N14: -6.8 | O14: 0 | P14: 14 | Q14: * | R14: 1 | V14: 3 | AA14: =COUNTIF(D30:D40,"<0") -> 3 | AB14: =COUNTIF(D30:D40,"<=-10") -> 0 | AE14: =COUNTIF(F30:F40,">=70") -> 5 | AG14: =COUNTIF(F30:F40,"<=40") -> 0
A15: 10. | B15: 0.2 | C15: 2.1 | D15: -2.4 | E15: -1.7 | F15: 85 | G15: 94 | H15: 8 | I15: 7.3 | J15: S | L15: 0 | M15: 1005.1 | N15: -0.7 | O15: 0 | P15: 16 | Q15: * | R15: 1 | V15: 3
A16: Su | B16: =SUM(B6:B15) -> -26.8 | C16: =SUM(C6:C15) -> 1.7 | D16: =SUM(D6:D15) -> -59.6 | E16: =SUM(E6:E15) -> -71.8 | F16: XXX | G16: =SUM(G6:G15) -> 883 | H16: =SUM(H6:H15) -> 49 | I16: =SUM(I6:I15) -> 19.9 | J16: =SUM(K6:K15) -> 0 | L16: =SUM(L6:L15) -> 32 | M16: =SUM(M6:M15) -> 10104.6 | N16: =SUM(N6:N15) -> -43.7 | O16: XXX | P16: =COUNT(P6:P15) -> 10 | Q16: X | R16: =SUM(R6:R15) -> 5 | S16: =SUM(S6:S15) -> 0 | T16: =SUM(T6:T15) -> 0 | U16: =SUM(U6:U15) -> 0 | V16: XXX | AA16: ohne Sonne | AB16: Son. 0,1-0,9 | AC16: Son. >=10,0 | AE16: Sch. >=1 cm | AF16: Sch. >=3 cm | AG16: Sch. >=10 cm
A17: Mi | B17: =SUM(B16/10) -> -2.68 | C17: =AVERAGE(C16/10) -> 0.17 | D17: =AVERAGE(D16/10) -> -5.96 | E17: =E16/10 -> -7.18 | F17: XXX | G17: =AVERAGE(G16/10) -> 88.3 | H17: =AVERAGE(H16/10) -> 4.9 | I17: XXXXX | J17: XX | L17: XXXX | M17: =AVERAGE(M16/10) -> 1010.46 | N17: =AVERAGE(N16/10) -> -4.37 | O17: XXX | P17: XXX | Q17: X | R17: XX | S17: XX | T17: XX | U17: XX | V17: XXX | AA17: =COUNTIF(L6:L15,".") -> 0 | AB17: =COUNTIF(L6:L15,"<1") -> 2 | AC17: =COUNTIF(L6:L15,">=10") -> 0 | AE17: =COUNTIF(P6:P15,">=1") -> 10 | AF17: =COUNTIF(P6:P15,">=3") -> 10 | AG17: =COUNTIF(P6:P15,">=10") -> 5
A18: 11. | B18: -3.3 | C18: -1.9 | D18: -4.4 | E18: -1.7 | F18: 90 | G18: 93 | H18: 8 | I18: 2.8 | J18: S | L18: 0 | M18: 1018.1 | N18: -4.2 | O18: 1 | P18: 22 | Q18: * | R18: 1 | V18: 4 | AA18: =COUNTIF(L18:L27,".") -> 0 | AB18: =COUNTIF(L18:L27,"<1") -> 7 | AC18: =COUNTIF(L18:L27,">=10") -> 0 | AE18: =COUNTIF(P18:P27,">=1") -> 10 | AF18: =COUNTIF(P18:P27,">=3") -> 10 | AG18: =COUNTIF(P18:P27,">=10") -> 6
A19: 12. | B19: -5.2 | C19: -3.1 | D19: -8.2 | E19: -2.8 | F19: 84 | G19: 90 | H19: 7.8 | I19: 0 | L19: 1 | M19: 1021.9 | N19: -6.5 | O19: 0 | P19: 22 | Q19: * | V19: 3 | AA19: =COUNTIF(L30:L40,".") -> 0 | AB19: =COUNTIF(L30:L40,"<1") -> 9 | AC19: =COUNTIF(L30:L40,">=10") -> 0 | AE19: =COUNTIF(P30:P40,">=1") -> 4 | AF19: =COUNTIF(P30:P40,">=3") -> 2 | AG19: =COUNTIF(P30:P40,">=10") -> 0
A20: 13. | B20: -3.5 | C20: -1.3 | D20: -4.8 | E20: -2.2 | F20: 81 | G20: 90 | H20: 6.7 | I20: 0.2 | J20: S | L20: 2 | M20: 1017.5 | N20: -5 | O20: 0 | P20: 22 | Q20: * | R20: 1 | V20: 3
A21: 14. | B21: -2.9 | C21: -1.1 | D21: -4.7 | E21: -1.7 | F21: 80 | G21: 83 | H21: 6.4 | I21: 0 | L21: 2 | M21: 1011.4 | N21: -5.4 | O21: 1 | P21: 20 | Q21: * | V21: 4 | AA21: Max TT | AB21: Max TxTx | AC21: Min TgTg | AE21: Max RR
A22: 15. | B22: 1.2 | C22: 2.4 | D22: -1.1 | E22: -1.1 | F22: 86 | G22: 91 | H22: 7 | I22: 3.2 | J22: R | L22: 0.2 | M22: 1006.1 | N22: -0.1 | O22: 1 | P22: 14 | Q22: * | R22: 1 | V22: 4 | AA22: =MAX(B6:B15,B18:B27,B30:B40) -> 10.8 | AB22: =MAX(C6:C15,C18:C27,C30:C40) -> 15.2 | AC22: =MIN(E6:E15,E18:E27,E30:E40) -> -13.3 | AE22: =MAX(I6:I15,I18:I27,I30:I40) -> 19.9
A23: 16. | B23: 3.1 | C23: 6.8 | D23: 1.3 | E23: 0 | F23: 83 | G23: 93 | H23: 7.1 | I23: 2.4 | J23: R | L23: 0.7 | M23: 1008.6 | N23: 2 | O23: 0 | P23: 12 | Q23: * | R23: 1 | V23: 3 | AA23: Min TT | AB23: Min TnTn | AC23: Min U14 | AE23: Max SS
A24: 17. | B24: 2.6 | C24: 4.3 | D24: 1.7 | E24: 0 | F24: 89 | G24: 94 | H24: 6.8 | I24: 0.2 | J24: R | L24: 0 | M24: 1008.4 | N24: 1.7 | O24: 0 | P24: 8 | Q24: * | R24: 1 | V24: 1 | AA24: =MIN(B6:B15,B18:B27,B30:B40) -> -8.8 | AB24: =MIN(D6:D15,D18:D27,D30:D40) -> -13 | AC24: =MIN(F6:F15,F18:F27,F30:F40) -> 47 | AE24: =MAX(P6:P15,P18:P27,P30:P40) -> 22
A25: 18. | B25: 2.7 | C25: 4.2 | D25: 1.7 | E25: 0.6 | F25: 95 | G25: 97 | H25: 7.9 | I25: 3.8 | J25: R | L25: 0 | M25: 1012.9 | N25: 2.2 | O25: 0 | P25: 7 | Q25: D | R25: 1 | V25: 2
A26: 19. | B26: 2.8 | C26: 3.3 | D26: 2.3 | E26: 1.7 | F26: 98 | G26: 99 | H26: 8 | I26: 2.8 | J26: R | L26: 0 | M26: 1023.3 | N26: 2.7 | O26: 0 | P26: 6 | Q26: D | R26: 1 | V26: 1
A27: 20. | B27: 1.3 | C27: 2.6 | D27: -0.7 | E27: 0.9 | F27: 95 | G27: 97 | H27: 8 | I27: 0 | L27: 0 | M27: 1022.1 | N27: 1 | O27: 1 | P27: 5 | Q27: D | V27: 3
A28: Su | B28: =SUM(B18:B27) -> -1.2 | C28: =SUM(C18:C27) -> 16.2 | D28: =SUM(D18:D27) -> -16.9 | E28: XXXX | F28: XXX | G28: =SUM(G18:G27) -> 927 | H28: =SUM(H18:H27) -> 73.7 | I28: =SUM(I18:I27) -> 15.4 | J28: =SUM(K18:K27) -> 0 | L28: =SUM(L18:L27) -> 5.9 | M28: =SUM(M18:M27) -> 10150.3 | N28: =SUM(N18:N27) -> -11.6 | O28: XXX | P28: =COUNT(P18:P27) -> 10 | Q28: X | R28: =SUM(R18:R27) -> 7 | S28: =SUM(S18:S27) -> 0 | T28: =SUM(T18:T27) -> 0 | U28: =SUM(U18:U27) -> 0 | V28: XXX
A29: Mi | B29: =AVERAGE(B28/10) -> -0.12 | C29: =AVERAGE(C28/10) -> 1.62 | D29: =AVERAGE(D28/10) -> -1.69 | E29: XXXX | F29: XXX | G29: =AVERAGE(G28/10) -> 92.7 | H29: =AVERAGE(H28/10) -> 7.37 | I29: XXXXX | J29: XX | L29: XXXX | M29: =AVERAGE(M28/10) -> 1015.03 | N29: =AVERAGE(N28/10) -> -1.16 | O29: XXX | P29: XXX | Q29: X | R29: XX | S29: XX | T29: XX | U29: XX | V29: XXX
A30: 21. | B30: -1.3 | C30: 0.1 | D30: -3.7 | E30: -4.4 | F30: 86 | G30: 90 | H30: 8 | I30: 0 | L30: 0 | M30: 1015.9 | N30: -2.7 | O30: 0 | P30: 5 | Q30: D | V30: 3
A31: 22. | B31: -0.1 | C31: 1.1 | D31: -1.8 | E31: -2.3 | F31: 91 | G31: 95 | H31: 8 | I31: 2.3 | J31: SR | L31: 0 | M31: 1018.8 | N31: -0.9 | O31: 0 | P31: 4 | Q31: D | R31: 1 | V31: 3
A32: 23. | B32: 2.5 | C32: 10.7 | D32: 0.6 | E32: 0 | F32: 91 | G32: 98 | H32: 8 | I32: 19.9 | J32: R | L32: 0 | M32: 1010.2 | N32: 1.9 | O32: 1 | P32: 2 | Q32: V | R32: 1 | V32: 4
A33: 24. | B33: 6.2 | C33: 13.2 | D33: 4.3 | E33: 4.4 | F33: 55 | G33: 96 | H33: 7.7 | I33: 6.6 | J33: R | L33: 0 | M33: 1009.7 | N33: 5.5 | O33: 0 | P33: 1 | Q33: R | R33: 1 | V33: 4
A34: 25. | B34: 10.8 | C34: 15.2 | D34: 7.2 | E34: 6.1 | F34: 47 | G34: 63 | H34: 5 | I34: 0.4 | J34: R | L34: 2.3 | M34: 1004.2 | N34: 4.1 | O34: 1 | P34: 0 | R34: 1 | V34: 4
A35: 26. | B35: 7.9 | C35: 9.6 | D35: 4.8 | E35: 3.3 | F35: 66 | G35: 74 | H35: 6 | I35: 0.4 | J35: R | L35: 0 | M35: 1008.4 | N35: 3.5 | O35: 1 | P35: 0 | R35: 1 | V35: 4
A36: 27. | B36: 7.3 | C36: 9.3 | D36: 5.5 | E36: 4.4 | F36: 63 | G36: 75 | H36: 6.2 | I36: 0.4 | J36: R | L36: 0.3 | M36: 1006.3 | N36: 3.2 | O36: 1 | P36: 0 | R36: 1 | V36: 5
A37: 28. | B37: 0.7 | C37: 5.6 | D37: -3.1 | E37: -5 | F37: 70 | G37: 87 | H37: 7.3 | I37: 0 | L37: 0.8 | M37: 1024.3 | N37: -1.3 | O37: 1 | P37: 0 | V37: 4
A38: 29. | B38: 3 | C38: 6.6 | D38: 0.2 | E38: -1.7 | F38: 76 | G38: 85 | H38: 6.9 | I38: 0 | L38: 1.2 | M38: 1023 | N38: 0.7 | O38: 1 | P38: 0 | V38: 4
A39: 30. | B39: 4.2 | C39: 9.2 | D39: 0.9 | E39: -1.1 | F39: 63 | G39: 77 | H39: 6.5 | I39: 0.2 | J39: R | L39: 0.8 | M39: 1017.7 | N39: 0.4 | O39: 1 | P39: 0 | R39: 1 | V39: 4
A40: 31. | B40: 6.3 | C40: 8.9 | D40: 2.4 | E40: 0 | F40: 65 | G40: 75 | H40: 6.1 | I40: 0 | L40: 0.2 | M40: 1017.4 | N40: 2.2 | O40: 1 | P40: 0 | V40: 4
A41: Su | B41: =SUM(B30:B40) -> 47.5 | C41: =SUM(C30:C40) -> 89.5 | D41: =SUM(D30:D40) -> 17.3 | E41: XXXX | F41: XXX | G41: =SUM(G30:G40) -> 915 | H41: =SUM(H30:H40) -> 75.7 | I41: =SUM(I30:I40) -> 30.2 | J41: =SUM(K30:K40) -> 0 | L41: 5.6 | M41: 11155.9 | N41: =SUM(N30:N40) -> 16.6 | O41: XXX | P41: =COUNT(P30:P40) -> 11 | Q41: X | R41: =SUM(R30:R40) -> 7 | S41: =SUM(S30:S40) -> 0 | T41: =SUM(T30:T40) -> 0 | U41: =SUM(U30:U40) -> 0 | V41: XXX
A42: Mi | B42: =AVERAGE(B41/11) -> 4.318181818 | C42: =AVERAGE(C41/11) -> 8.136363636 | D42: =AVERAGE(D41/11) -> 1.572727273 | E42: XXXX | F42: XXX | G42: =AVERAGE(G41/11) -> 83.18181818 | H42: =AVERAGE(H41/11) -> 6.881818182 | I42: XXXXX | J42: XX | L42: XXXX | M42: =AVERAGE(M41/11) -> 1014.172727 | N42: =AVERAGE(N41/11) -> 1.509090909 | O42: XXX | P42: XXX | Q42: X | R42: XX | S42: XX | T42: XX | U42: XX | V42: XXX
A43: MSu | B43: =SUM(B16+B28+B41) -> 19.5 | C43: =SUM(C16+C28+C41) -> 107.4 | D43: =SUM(D16+D28+D41) -> -59.2 | E43: XXXX | F43: XXX | G43: =SUM(G16+G28+G41) -> 2725 | H43: 198.4 | I43: =SUM(I16+I28+I41) -> 65.5 | J43: =SUM(J16+J28+J41) -> 0 | L43: 43.5 | M43: 31410.8 | N43: -38.7 | O43: XXX | P43: =SUM(P16+P28+P41) -> 31 | Q43: X | R43: =SUM(R16+R28+R41) -> 19 | S43: =SUM(S16+S28+S41) -> 0 | T43: =SUM(T16+T28+T41) -> 0 | U43: =SUM(U16+U28+U41) -> 0 | V43: XXX
A44: MMi | B44: =AVERAGE(B6:B15,B18:B27,B30:B40) -> 0.6290322581 | C44: =AVERAGE(C43/31) -> 3.464516129 | D44: =AVERAGE(D43/31) -> -1.909677419 | E44: XXXX | F44: XXX | G44: =AVERAGE(G43/31) -> 87.90322581 | H44: =AVERAGE(H43/31) -> 6.4 | I44: XXXXX | J44: XX | L44: XXXX | M44: =AVERAGE(M43/31) -> 1013.251613 | N44: =AVERAGE(N43/31) -> -1.248387097 | O44: XXX | P44: XXX | Q44: X | R44: XX | S44: XX | T44: XX | U44: XX | V44: XXX
B46: Norm | C46: % v N.- | D46: Abw. | E46: Zahl der Tage | L46: Niederschlag mm | P46: Sonnensch.-dauer Std
B47: wert | C47: wert | D47: K | E47: Max.d.Lufttemp.°C | L47: >/= 0,1 | O47: =SUM(AE7:AE9) -> 19 | P47: ohne Sonne | V47: 12
A48: TTT | B48: 1.2 | C48: XXXX | D48: =SUM(B44-B48) -> -0.5709677419 | E48: Tropentag/Hitzetag | I48: =SUM(AA7:AA9) -> 0 | L48: >/= 1,0 | O48: =SUM(AF7:AF9) -> 12 | P48: 0,1 bis 0,9 | V48: 6
A49: RRR | B49: 54 | C49: =SUM(I43*100/B49) -> 121.2962963 | D49: XXXX | E49: Sommertag | I49: =SUM(AB7:AB9) -> 0 | L49: >/= 3,0 | O49: =SUM(AG7:AG9) -> 7 | P49: >/= 10,0 | V49: =SUM(AC17:AC19) -> 0
A50: sss | B50: 50 | C50: =SUM(L43*100/B50) -> 87 | D50: XXXX | E50: Eistag | I50: =SUM(AC7:AC9) -> 9 | L50: >/=10,0 | O50: =SUM(AH7:AH9) -> 1 | P50: Schneedecke cm
A51: astr. | D51: XXXX | E51: Min.d.Lufttemp.°C | L51: >/= 20,0 | O51: 0 | P51: >/= 1 | V51: =SUM(AE17:AE19) -> 24
A52: mgl. | B52: 256 | C52: =SUM(L43*100/B52) -> 16.9921875 | D52: XXXX | E52: Frosttag | I52: =SUM(AA12:AA14) -> 18 | L52: Rel. Luftfeuchte 14 Uhr | P52: >/= 3 | V52: =SUM(AF17:AF19) -> 22
A53: sss | D53: XXXX | E53: starker Eistag | I53: =SUM(AB12:AB14) -> 1 | L53: >/=70% | O53: =SUM(AE12:AE14) -> 23 | P53: >/= 10 | V53: =SUM(AG17:AG19) -> 11
L54: </=40% | O54: =SUM(AG12:AG14) -> 0

Sheet Sichtst.
E1: Sichtweitenstatistik
B5: Wetterwarte: Zinnwald | F5: Monat: | G5: Dezember | K5: Jahr: | L5: 2012
A7: Dat. | B7: Nebeldauer | C7: Nebel | D7: Dunst | E7: Sicht | F7: Sicht | G7: Sicht | H7: Sicht
B8: in St. u. Min. | E8: mittel | F8: normal | G8: gut | H8: sehr gut
A9: 01. | B9: - | C9: =IF(R9=1,1,"-") -> - | D9: =IF(R9=2,1,"-") -> - | E9: =IF(R9=3,1,"-") -> - | F9: 1 | G9: - | H9: - | N9: =IF(ISNUMBER(B9),B9*24," ") ->  | O9: =IF(ISNUMBER(N9),IF(N9<1,1," ")," ") ->  | P9: =IF(ISNUMBER(N9),IF(N9<8,2," ")," ") ->  | Q9: =IF(ISNUMBER(N9),IF(N9<24,3," ")," ") ->  | R9: =MIN(O9:Q9) -> 0
A10: 02. | B10: - | C10: - | D10: - | E10: 1 | F10: - | G10: - | H10: - | R10: 0
A11: 03. | B11: - | C11: - | D11: - | E11: 1 | F11: 1 | G11: - | H11: - | R11: 0
A12: 04. | B12: - | C12: - | D12: - | E12: - | F12: 1 | G12: - | H12: - | R12: 0
A13: 05. | B13: - | C13: - | D13: - | E13: - | F13: - | G13: 1 | H13: - | R13: 0
A14: 06. | B14: - | C14: - | D14: 1 | E14: 1 | F14: - | G14: - | H14: - | R14: 0
A15: 07. | B15: - | C15: - | D15: - | E15: - | F15: 1 | G15: 1 | H15: - | R15: 0
A16: 08. | B16: - | C16: - | D16: - | E16: - | F16: 1 | G16: 1 | H16: - | R16: 0
A17: 09. | B17: - | C17: - | D17: - | E17: - | F17: 1 | G17: - | H17: - | R17: 0
A18: 10. | B18: - | C18: - | D18: 1 | E18: 1 | F18: - | G18: - | H18: - | R18: 0
A19: 11. | B19: - | C19: - | D19: 1 | E19: - | F19: - | G19: - | H19: - | R19: 0
A20: 12. | B20: - | C20: - | D20: 1 | E20: 1 | F20: - | G20: - | H20: - | R20: 0
A21: 13. | B21: - | C21: - | D21: 1 | E21: 1 | F21: - | G21: - | H21: - | R21: 0
A22: 14. | B22: - | C22: - | D22: - | E22: 1 | F22: - | G22: - | H22: - | R22: 0
A23: 15. | B23: - | C23: - | D23: 1 | E23: 1 | F23: - | G23: - | H23: - | R23: 0
A24: 16. | B24: - | C24: - | D24: 1 | E24: 1 | F24: 1 | G24: - | H24: - | R24: 0
A25: 17. | B25: - | C25: - | D25: - | E25: 1 | F25: - | G25: - | H25: - | R25: 0
A26: 18. | B26: - | C26: - | D26: 1 | E26: - | F26: - | G26: - | H26: - | R26: 0
A27: 19. | B27: - | C27: 1 | D27: - | E27: - | F27: - | G27: - | H27: - | R27: 0
A28: 20. | B28: - | C28: 1 | D28: - | E28: - | F28: - | G28: - | H28: - | R28: 0
A29: 21. | B29: - | C29: - | D29: 1 | E29: - | F29: - | G29: - | H29: - | R29: 0
A30: 22. | B30: - | C30: - | D30: 1 | E30: - | F30: - | G30: - | H30: - | R30: 0
A31: 23. | B31: - | C31: 1 | D31: - | E31: - | F31: - | G31: - | H31: - | R31: 0
A32: 24. | B32: - | C32: 1 | D32: 1 | E32: 1 | F32: 1 | G32: - | H32: - | R32: 0
A33: 25. | B33: - | C33: - | D33: - | E33: - | F33: 1 | G33: - | H33: - | R33: 0
A34: 26. | B34: - | C34: - | D34: - | E34: - | F34: 1 | G34: - | H34: - | R34: 0
A35: 27. | B35: - | C35: - | D35: - | E35: 1 | F35: 1 | G35: - | H35: - | R35: 0
A36: 28. | B36: - | C36: =IF(R36=1,1,"-") -> - | D36: =IF(R36=2,1,"-") -> - | E36: 1 | F36: - | G36: - | H36: - | N36: =IF(ISNUMBER(B36),B36*24," ") ->  | O36: =IF(ISNUMBER(N36),IF(N36<1,1," ")," ") ->  | P36: =IF(ISNUMBER(N36),IF(N36<8,2," ")," ") ->  | Q36: =IF(ISNUMBER(N36),IF(N36<24,3," ")," ") ->  | R36: =MIN(O36:Q36) -> 0
A37: 29. | B37: - | C37: =IF(R37=1,1,"-") -> - | D37: =IF(R37=2,1,"-") -> - | E37: 1 | F37: - | G37: - | H37: - | N37: =IF(ISNUMBER(B37),B37*24," ") ->  | O37: =IF(ISNUMBER(N37),IF(N37<1,1," ")," ") ->  | P37: =IF(ISNUMBER(N37),IF(N37<8,2," ")," ") ->  | Q37: =IF(ISNUMBER(N37),IF(N37<24,3," ")," ") ->  | R37: =MIN(O37:Q37) -> 0
A38: 30. | B38: - | C38: =IF(R38=1,1,"-") -> - | D38: =IF(R38=2,1,"-") -> - | E38: 1 | F38: 1 | G38: - | H38: - | N38: =IF(ISNUMBER(B38),B38*24," ") ->  | O38: =IF(ISNUMBER(N38),IF(N38<1,1," ")," ") ->  | P38: =IF(ISNUMBER(N38),IF(N38<8,2," ")," ") ->  | Q38: =IF(ISNUMBER(N38),IF(N38<24,3," ")," ") ->  | R38: =MIN(O38:Q38) -> 0
A39: 31. | C39: =IF(R39=1,1,"-") -> - | D39: =IF(R39=2,1,"-") -> - | E39: =IF(R39=3,1,"-") -> - | F39: 1 | G39: - | H39: - | N39: =IF(ISNUMBER(B39),B39*24," ") ->  | O39: =IF(ISNUMBER(N39),IF(N39<1,1," ")," ") ->  | P39: =IF(ISNUMBER(N39),IF(N39<8,2," ")," ") ->  | Q39: =IF(ISNUMBER(N39),IF(N39<24,3," ")," ") ->  | R39: =MIN(O39:Q39) -> 0
A40: Su. | B40: XXXXXXXXX | C40: =SUM(C9:C39) -> 4 | D40: 11 | E40: 15 | F40: 13 | G40: 3 | H40: 0
B42: Anzahl der Nebeltage : | E42: =SUM(C40) -> 4
B43: Anzahl der Tage Sicht >= 50 km : | E43: =SUM(G40,H40) -> 3

Sheet Monatsdiagramm
A1: Klimadiagramm | C1: Wetterstation Köttewitz | I1: (213 m ü. NHN)
A3: Dezember 2012
C5: aktuell | D5: langj. Mittel | E5: Abw. vom lj. Mittel
B6: höchste Temperatur (°C): | C6: =MAX('Daten für Diagr.'!C2:C32) -> 15.2 | D6: am | E6: 2012-12-04
B7: mittlere Temperatur (°C): | C7: =Kurztab.!B44 -> 0.6290322581 | D7: =Kurztab.!B48 -> 1.2 | E7: =C7-D7 -> -0.5709677419 | F7: K
B8: tiefste Temperatur (°C): | C8: =MIN('Daten für Diagr.'!D2:D32) -> -13 | D8: am | E8: 2012-12-08
B9: Niederschlagshöhe (mm): | C9: =Kurztab.!I43 -> 65.5 | D9: =Kurztab.!B49 -> 54 | E9: =100/D9*C9 -> 121.2962963 | F9: %
B10: Sonnenscheindauer (Std.): | C10: =Kurztab.!L43 -> 43.5 | D10: =Kurztab.!B50 -> 50 | E10: =100/D10*C10 -> 87 | F10: %

Sheet Daten für Diagr.
B1: Td | C1: Tmax | D1: Tmin | E1: RR | F1: Schnee | G1: Sonne | H1: Luftdr. | I1: MWT | J1: GWL | K1: Name | L1: Sonstiges
A2: 2012-12-01 | B2: -2.4 | C2: 0.8 | D2: -5.2 | F2: 8 | G2: 6 | H2: 1014.5 | I2: 3
A3: 2012-12-02 | B3: -2.6 | C3: -0.3 | D3: -5.4 | F3: 7 | G3: 4 | H3: 1011.7 | I3: 2.85 | J3: Ws | K3: T Iris | L3: In der Nacht keine Abkühlung unter - 1 °C.
A4: 2012-12-03 | B4: -0.7 | C4: 0.9 | D4: -3.3 | E4: 2.9 | F4: 9 | G4: 2 | H4: 1012.9 | I4: 2.7 | L4: Am Morgen Schneefall, ab 12:00 Uhr Auflockerung. Kurz nach Sonnenuntergang wieder stark bewölkt.
A5: 2012-12-04 | B5: 2 | C5: 3.5 | D5: 0 | E5: 0.8 | F5: 8 | G5: 1 | H5: 999.4 | I5: 2.55
A6: 2012-12-05 | B6: -0.7 | C6: 3.3 | D6: -6 | F6: 7 | G6: 2 | H6: 1001.4 | I6: 2.4 | J6: NWz | K6: T Johanna | L6: Gegen 10:00 Uhr Ac str un als irisierende Wolke.
A7: 2012-12-06 | B7: -3.2 | C7: -0.6 | D7: -6.2 | E7: 3.3 | F7: 11 | G7: 0 | H7: 1009.3 | I7: 2.25 | J7: Nz | L7: Zwischen 12:00 Uhr und 18:00 Uhr starkes Schneetreiben.
A8: 2012-12-07 | B8: -6.1 | C8: -2.1 | D8: -8.8 | F8: 12 | G8: 7 | H8: 1013 | I8: 2.1
A9: 2012-12-08 | B9: -8.8 | C9: -4.7 | D9: -13 | F9: 10 | G9: 7 | H9: 1020.8 | I9: 1.95 | J9: NWz | K9: T Luna
A10: 2012-12-09 | B10: -4.5 | C10: -1.2 | D10: -9.3 | E10: 5.6 | F10: 14 | G10: 3 | H10: 1016.5 | I10: 1.8 | L10: Von 13:30 Uhr - 19:00 Uhr starker Schneefall. Von 14:00 Uhr - 19:00 Uhr Sichteinschränkung durch starken Niederschlag.
A11: 2012-12-10 | B11: 0.2 | C11: 2.1 | D11: -2.4 | E11: 7.3 | F11: 16 | G11: 0 | H11: 1005.1 | I11: 1.65 | J11: Nz | K11: T Marie | L11: Von 8:00 Uhr - 10:30 Uhr und 15:30 - 23:59 Uhr Sichteinschränkung durch mäßigen Niederschlag. Von 8:00 Uhr - 10:30 Uhr, 13:30 Uhr, 14:30 Uhr - 15:00 Uhr, 15:30 Uhr - 23: 59 Uhr mäßiger Schneefall.
A12: 2012-12-11 | B12: -3.3 | C12: -1.9 | D12: -4.4 | E12: 2.8 | F12: 22 | G12: 0 | H12: 1018.1 | I12: 1.5 | L12: Von 8:30 Uhr - 9:30 Uhr, 10:00 Uhr - 15:30 Uhr? mäßiger Schneefall. Von 8:30 Uhr - 9:30 Uhr, 10:00 Uhr - 12:00 Uhr Sichteinschränkung durch mäßigen Niederschlag.
A13: 2012-12-12 | B13: -5.2 | C13: -3.1 | D13: -8.2 | F13: 22 | G13: 1 | H13: 1021.9 | I13: 1.35
A14: 2012-12-13 | B14: -3.5 | C14: -1.3 | D14: -4.8 | E14: 0.2 | F14: 22 | G14: 2 | H14: 1017.5 | I14: 1.2 | J14: Ws | K14: T Nicki
A15: 2012-12-14 | B15: -2.9 | C15: -1.1 | D15: -4.7 | F15: 20 | G15: 2 | H15: 1011.4 | I15: 1.05
A16: 2012-12-15 | B16: 1.2 | C16: 2.4 | D16: -1.1 | E16: 3.2 | F16: 14 | G16: 0.2 | H16: 1006.1 | I16: 1 | J16: Wz | L16: Von 18:00 Uhr - 23:59 Uhr leichter Dunst.
A17: 2012-12-16 | B17: 3.1 | C17: 6.8 | D17: 1.3 | E17: 2.4 | F17: 12 | G17: 0.7 | H17: 1008.6 | I17: 0.85 | L17: Von 00:00 Uhr - 10: 30 Uhr leichter Dunst.
A18: 2012-12-17 | B18: 2.6 | C18: 4.3 | D18: 1.7 | E18: 0.2 | F18: 8 | G18: 0 | H18: 1008.4 | I18: 0.75
A19: 2012-12-18 | B19: 2.7 | C19: 4.2 | D19: 1.7 | E19: 3.8 | F19: 7 | G19: 0 | H19: 1021.9 | I19: 0.7 | L19: Von 00:00 Uhr - 18:00 Uhr leichter Dunst. Von 18:00 Uhr - 19:00 Uhr mittlerer Dunst. Von 19:00 Uhr - Uhr starker Dunst.
A20: 2012-12-19 | B20: 2.8 | C20: 3.3 | D20: 2.3 | E20: 2.8 | F20: 6 | G20: 0 | H20: 1023.3 | I20: 0.65 | L20: Von 00:00 Uhr - 23:59 Uhr Nebel.
A21: 2012-12-20 | B21: 1.3 | C21: 2.6 | D21: -0.7 | F21: 5 | G21: 0 | H21: 1022.1 | I21: 0.65 | L21: Von 00:00 Uhr - 23:59 Uhr Nebel.
A22: 2012-12-21 | B22: -1.3 | C22: 0.1 | D22: -3.7 | F22: 5 | G22: 0 | H22: 1015.9 | I22: 0.6
A23: 2012-12-22 | B23: -0.1 | C23: 1.1 | D23: -1.8 | E23: 2.3 | F23: 4 | G23: 0 | H23: 1018.8 | I23: 0.6
A24: 2012-12-23 | B24: 2.5 | C24: 10.7 | D24: 0.6 | E24: 19.9 | F24: 2 | G24: 0 | H24: 1010.2 | I24: 0.55 | L24: Von 00:00 Uhr - 23:59 Uhr Nebel.
A25: 2012-12-24 | B25: 6.2 | C25: 13.2 | D25: 4.3 | E25: 6.6 | F25: 1 | G25: 0 | H25: 1009.7 | I25: 0.55 | J25: Wz | L25: Von 00:00 Uhr - 21:00 Uhr Nebel.
A26: 2012-12-25 | B26: 10.8 | C26: 15.2 | D26: 7.2 | E26: 0.4 | F26: 0 | G26: 2.3 | H26: 1004.2 | I26: 0.5
A27: 2012-12-26 | B27: 7.9 | C27: 9.6 | D27: 4.8 | E27: 0.4 | G27: 0 | H27: 1008.4 | I27: 0.5
A28: 2012-12-27 | B28: 7.3 | C28: 9.3 | D28: 5.5 | E28: 0.4 | G28: 0.3 | H28: 1006.3 | I28: 0.45
A29: 2012-12-28 | B29: 0.7 | C29: 5.6 | D29: -3.1 | G29: 0.8 | H29: 1024.3 | I29: 0.45 | L29: Gegen 14:00 Uhr irisierende Wolke.
A30: 2012-12-29 | B30: 3 | C30: 6.6 | D30: 0.2 | E30: 0.2 | G30: 1.2 | H30: 1023 | I30: 0.4
A31: 2012-12-30 | B31: 4.2 | C31: 9.2 | D31: 0.9 | G31: 0.8 | H31: 1017.7 | I31: 0.4 | J31: Wa | K31: H Valentin
A32: 2012-12-31 | B32: 6.3 | C32: 8.9 | D32: 2.4 | G32: 0.2 | H32: 1017.4 | I32: 0.35
A33: Durchschnitt | B33: =AVERAGE(B2:B32) -> 0.6290322581 | C33: =AVERAGE(C2:C32) -> 3.464516129 | D33: -1.909677419 | E33: =SUM(E2:E32) -> 65.5 | F33: - | G33: 1.403225806 | H33: 1013.541935 | I33: 1.235483871
A34: Mittel | B34: 1.2 | E34: 50 | F34: - | G34: 54 | H34: 1017.1
